bitfinex/quotes_BTCUSD_20230106
["timestamp","ask_amount","ask_price","bid_price","bid_amount"]
[1673010040836,4.09076173,16740.0,16739.0,0.03444021]
[1673010042161,3.47900473,16740.0,16739.0,0.03444021]
[1673010042414,4.06898716,16740.0,16739.0,0.03444021]
[1673010042694,3.45723016,16740.0,16739.0,0.03444021]
[1673010042938,3.39088577,16740.0,16739.0,0.03444021]
[1673010043176,3.89222755,16740.0,16739.0,0.03444021]
[1673010043677,4.49583995,16740.0,16739.0,0.03444021]
[1673010043929,3.89222755,16740.0,16739.0,0.03444021]
[1673010044193,3.28047055,16740.0,16739.0,0.03444021]
[1673010044453,4.56683186,16740.0,16739.0,0.03444021]
[1673010044707,3.28047055,16740.0,16739.0,0.03444021]
[1673010045020,3.89222755,16740.0,16739.0,0.03444021]
[1673010045232,4.57903249,16740.0,16739.0,0.03444021]
[1673010045990,3.96727549,16740.0,16739.0,0.03444021]
[1673010046245,4.57903249,16740.0,16739.0,0.03444021]
[1673010046495,3.96727549,16740.0,16739.0,0.03444021]
[1673010046752,4.57903249,16740.0,16739.0,0.03444021]
[1673010047277,3.96727549,16740.0,16739.0,0.03444021]
[1673010047556,4.57903249,16740.0,16739.0,0.03444021]
[1673010047803,3.28047055,16740.0,16739.0,0.02813652]
[1673010048046,3.89222755,16740.0,16739.0,0.02813652]
[1673010048304,2.77912877,16740.0,16739.0,0.02813652]
[1673010048574,2.54878361,16740.0,16739.0,0.02813652]
[1673010048840,3.15019375,16740.0,16739.0,0.02813652]
[1673010049093,3.99229591,16740.0,16739.0,0.02813652]
[1673010051201,4.31969286,16740.0,16739.0,0.03276226]
[1673010051568,4.45569286,16740.0,16739.0,0.03276226]
[1673010051982,4.75945206,16740.0,16739.0,0.03276226]
[1673010052234,4.4913322,16740.0,16739.0,0.03276226]
[1673010052497,5.37120906,16740.0,16739.0,0.03276226]
[1673010053058,5.23520906,16740.0,16739.0,0.03276226]
[1673010053326,5.37220906,16740.0,16739.0,0.03276226]
[1673010055437,5.67220906,16740.0,16739.0,0.03059376]
[1673010055961,5.37220906,16740.0,16739.0,0.03059376]
[1673010056222,5.67220906,16740.0,16739.0,0.03059376]
[1673010056490,5.67342536,16740.0,16739.0,0.03059376]
[1673010056785,6.17342536,16740.0,16739.0,0.03059376]
[1673010056998,5.2923322,16740.0,16739.0,0.03059376]
[1673010057256,6.03623618,16740.0,16739.0,0.03059376]
[1673010057523,6.17323618,16740.0,16739.0,0.03059376]
[1673010057773,6.17323618,16740.0,16739.0,0.0228303]
[1673010058063,6.17323618,16740.0,16739.0,0.00929923]
[1673010058536,6.03623618,16740.0,16739.0,0.00929923]
[1673010058813,6.17323618,16740.0,16739.0,0.00929923]
[1673010059395,5.87323618,16740.0,16739.0,0.00929923]
[1673010059613,6.17323618,16740.0,16739.0,0.00929923]
[1673010060911,5.87323618,16740.0,16739.0,0.00929923]
[1673010063275,4.9923322,16740.0,16739.0,0.00929923]
[1673010063781,6.17323618,16740.0,16739.0,0.00929923]
[1673010064308,5.87323618,16740.0,16739.0,0.00929923]
[1673010064619,6.17323618,16740.0,16739.0,0.00929923]
[1673010065885,6.17323618,16740.0,16739.0,0.00339865]
[1673010067705,6.1540268,16740.0,16739.0,0.00339865]
[1673010067965,6.1540268,16740.0,16738.0,0.00684163]
[1673010068228,2.02008452,16739.0,16738.0,0.00684163]
[1673010068495,3.81230552,16739.0,16738.0,0.00684163]
[1673010069248,3.20054852,16739.0,16738.0,0.00684163]
[1673010069508,3.94930552,16739.0,16738.0,0.00684163]
[1673010070561,3.33754852,16739.0,16738.0,0.00684163]
[1673010070817,3.94930552,16739.0,16738.0,0.00684163]
[1673010071122,3.33754852,16739.0,16738.0,0.00684163]
[1673010071336,3.94930552,16739.0,16738.0,0.00684163]
[1673010071558,3.33754852,16739.0,16738.0,0.00684163]
[1673010071822,3.94930552,16739.0,16738.0,0.00684163]
[1673010072632,4.2184525,16739.0,16738.0,0.00684163]
[1673010072872,5.1302095,16739.0,16738.0,0.00684163]
[1673010073420,4.5184525,16739.0,16738.0,0.00684163]
[1673010073679,5.1302095,16739.0,16738.0,0.00684163]
[1673010073966,4.5184525,16739.0,16738.0,0.00184509]
[1673010074207,5.1302095,16739.0,16738.0,0.00184509]
[1673010074474,4.5184525,16739.0,16738.0,0.00184509]
[1673010074773,4.97957042,16739.0,16738.0,0.00184509]
[1673010075174,5.12507042,16739.0,16737.0,0.00721721]
[1673010075175,5.18609253,16739.0,16737.0,0.00721721]
[1673010075403,2.54602058,16738.0,16737.0,2.1e-07]
[1673010075632,2.77636574,16738.0,16736.0,0.00795509]
[1673010075910,1.79630735,16737.0,16735.0,0.00641311]
[1673010076168,4.48636335,16736.0,16734.0,0.01562588]
[1673010076427,1.65099602,16735.0,16734.0,0.01562588]
[1673010076685,4.25569497,16735.0,16734.0,0.01562588]
[1673010076947,4.84964264,16735.0,16734.0,0.01562588]
[1673010077721,4.85814264,16735.0,16734.0,0.01562588]
[1673010077986,5.35814264,16735.0,16734.0,0.00496774]
[1673010078285,4.61588885,16735.0,16734.0,0.00496774]
[1673010078551,0.5,16734.0,16733.0,0.012142]
[1673010078836,4.4834114,16734.0,16733.0,0.012142]
[1673010079399,4.51905074,16734.0,16733.0,0.012142]
[1673010080195,4.65605074,16734.0,16733.0,0.012142]
[1673010080498,4.51905074,16734.0,16733.0,0.012142]
[1673010080754,4.65605074,16734.0,16733.0,0.012142]
[1673010081004,4.65605074,16734.0,16733.0,0.00518856]
[1673010082039,4.65605074,16734.0,16732.0,0.01059555]
[1673010082296,1.65732275,16733.0,16732.0,0.01059555]
[1673010082565,3.14404326,16733.0,16732.0,0.01059555]
[1673010083069,3.7773036,16733.0,16732.0,0.01059555]
[1673010083333,4.3396036,16733.0,16732.0,0.01059555]
[1673010083604,5.04239864,16733.0,16732.0,0.01059555]
[1673010084724,4.73686959,16733.0,16732.0,0.01059555]
[1673010085494,5.06062513,16733.0,16732.0,0.01059555]
[1673010085765,4.18079188,16733.0,16732.0,0.01059555]
[1673010086043,4.75315091,16733.0,16732.0,0.01059555]
[1673010086554,4.18079188,16733.0,16732.0,0.01059555]
[1673010087097,5.05059357,16733.0,16732.0,0.01059555]
[1673010087872,5.05059357,16733.0,16732.0,0.00130628]
[1673010088451,4.51643122,16733.0,16732.0,0.00130628]
[1673010088725,5.05072181,16733.0,16732.0,0.00130628]
[1673010090029,5.05072181,16733.0,16731.0,0.00809109]
[1673010090305,2.23389653,16732.0,16731.0,0.00809109]
[1673010090559,4.02686753,16732.0,16731.0,0.00809109]
[1673010092622,4.16386753,16732.0,16731.0,0.00809109]
[1673010095022,3.18841807,16732.0,16731.0,0.00809109]
[1673010095268,2.59076107,16732.0,16731.0,0.00809109]
[1673010097922,3.18841807,16732.0,16731.0,0.00649794]
[1673010098955,3.7226543,16732.0,16731.0,0.00649794]
[1673010105094,3.5856543,16732.0,16731.0,0.00649794]
[1673010105655,3.7226543,16732.0,16731.0,0.00649794]
[1673010105913,3.5856543,16732.0,16731.0,0.00649794]
[1673010106174,3.7226543,16732.0,16731.0,0.00649794]
[1673010106423,3.43036529,16732.0,16731.0,0.00649794]
[1673010107766,3.12587459,16732.0,16731.0,0.00649794]
[1673010108038,3.12587459,16732.0,16731.0,0.00525303]
[1673010108570,2.59076107,16732.0,16731.0,0.00525303]
[1673010108825,3.12617978,16732.0,16731.0,0.00525303]
[1673010109665,1.91676578,16732.0,16731.0,0.00525303]
[1673010109927,1.31910878,16732.0,16731.0,0.0789151]
[1673010110183,0.78369007,16732.0,16731.0,0.00525303]
[1673010110451,0.19813335,16732.0,16731.0,0.59184694]
[1673010110741,0.19813335,16732.0,16731.0,0.90667894]
[1673010111006,0.19813335,16732.0,16731.0,1.18953894]
[1673010111529,0.19813335,16732.0,16731.0,0.59184694]
[1673010112597,0.73355206,16732.0,16731.0,1.18953894]
[1673010112871,0.73355206,16732.0,16731.0,0.59184694]
[1673010114479,0.19813335,16732.0,16731.0,0.00525303]
[1673010116380,0.7347199,16732.0,16731.0,0.00525303]
[1673010120376,0.7347199,16732.0,16731.0,0.72140492]
[1673010120649,0.7347199,16732.0,16731.0,1.31909692]
[1673010121783,0.7347199,16732.0,16731.0,1.31915953]
[1673010122021,0.7347199,16732.0,16731.0,1.31909692]
[1673010122536,0.7347199,16732.0,16731.0,0.72140492]
[1673010124061,0.7347199,16732.0,16731.0,1.31915953]
[1673010124268,0.7347199,16732.0,16731.0,1.31909692]
[1673010125288,0.7347199,16732.0,16731.0,1.31915953]
[1673010125764,0.7347199,16732.0,16731.0,1.31909692]
[1673010126277,0.7347199,16732.0,16731.0,1.31915953]
[1673010126785,0.7347199,16732.0,16731.0,1.31909692]
[1673010127044,0.7347199,16732.0,16731.0,0.72140492]
[1673010127314,0.7347199,16732.0,16731.0,0.00525303]
[1673010127588,1.3323769,16732.0,16731.0,0.00525303]
[1673010127855,2.06058857,16732.0,16731.0,0.00525303]
[1673010128369,2.06058857,16732.0,16731.0,0.00384997]
[1673010128628,2.66202295,16732.0,16731.0,0.00384997]
[1673010128881,3.25262563,16732.0,16731.0,0.00384997]
[1673010129401,2.66202295,16732.0,16731.0,0.00384997]
[1673010131689,2.06058857,16732.0,16731.0,0.00384997]
[1673010131954,1.46293157,16732.0,16731.0,0.00384997]
[1673010133785,2.06436595,16732.0,16731.0,0.00384997]
[1673010139064,1.46670895,16732.0,16731.0,0.00384997]
[1673010139918,2.06436595,16732.0,16731.0,0.00384997]
[1673010141243,2.66202295,16732.0,16731.0,0.00384997]
[1673010141755,2.66202295,16732.0,16731.0,0.0028443]
[1673010142764,3.25262563,16732.0,16731.0,0.0028443]
[1673010143064,2.66202295,16732.0,16731.0,0.0028443]
[1673010143331,3.25262563,16732.0,16731.0,0.0028443]
[1673010144094,2.65119125,16732.0,16731.0,0.0028443]
[1673010145630,3.24884825,16732.0,16731.0,0.0028443]
[1673010146412,3.86060525,16732.0,16731.0,0.0028443]
[1673010146674,3.52547955,16732.0,16731.0,0.0028443]
[1673010146935,3.96839077,16732.0,16731.0,0.00062378]
[1673010147199,0.57655943,16731.0,16730.0,0.01255836]
[1673010147462,4.48598017,16731.0,16730.0,0.01255836]
[1673010148003,3.90942074,16731.0,16730.0,0.01255836]
[1673010148518,4.04642074,16731.0,16730.0,0.01255836]
[1673010149030,4.59528865,16731.0,16730.0,0.01255836]
[1673010149285,4.04642074,16731.0,16730.0,0.01255836]
[1673010149548,4.92472124,16731.0,16730.0,0.01255836]
[1673010149833,5.22472124,16731.0,16730.0,0.01255836]
[1673010151684,5.22472124,16731.0,16729.0,0.00957391]
[1673010151946,1.98542122,16730.0,16729.0,0.00957391]
[1673010152206,4.05523652,16730.0,16729.0,0.00957391]
[1673010152514,4.05523652,16730.0,16728.0,0.02119258]
[1673010152515,5.76516258,16730.0,16726.0,3.14830813]
[1673010152771,0.00660072,16728.0,16725.0,0.02119258]
[1673010153026,0.60248373,16726.0,16725.0,0.02119258]
[1673010153294,0.60248373,16726.0,16724.0,0.00279728]
[1673010153295,3.07627726,16726.0,16724.0,0.00279728]
[1673010153547,1.8135889,16725.0,16724.0,0.00279728]
[1673010153807,2.71154342,16725.0,16724.0,0.00279728]
[1673010154099,3.07634926,16725.0,16724.0,0.00279728]
[1673010154588,3.00889525,16725.0,16724.0,0.55400233]
[1673010154843,0.50705101,16725.0,16724.0,0.55412221]
[1673010155108,1.00078185,16725.0,16724.0,0.55400233]
[1673010155369,1.00079179,16725.0,16724.0,0.55400233]
[1673010156120,1.00079179,16725.0,16724.0,0.54900233]
[1673010156447,0.86379179,16725.0,16724.0,0.54900233]
[1673010156638,0.80265844,16725.0,16724.0,0.54900233]
[1673010156890,0.62420367,16725.0,16724.0,0.97869196]
[1673010157147,0.76120367,16725.0,16724.0,1.26164296]
[1673010157416,0.76120367,16725.0,16724.0,1.14694533]
[1673010157676,0.76120367,16725.0,16724.0,0.54900233]
[1673010157966,1.20712133,16725.0,16724.0,0.54900233]
[1673010158224,0.93965844,16725.0,16724.0,0.54900233]
[1673010158474,1.06241215,16725.0,16724.0,0.54900233]
[1673010158736,1.20704898,16725.0,16724.0,0.54900233]
[1673010159010,0.76013132,16725.0,16724.0,0.54900233]
[1673010160621,0.76013132,16725.0,16723.0,0.597946]
[1673010160888,0.17822836,16724.0,16722.0,1.31048173]
[1673010161403,0.4456189,16724.0,16723.0,0.315011]
[1673010161975,0.4456189,16724.0,16722.0,1.31048173]
[1673010162228,0.76013132,16724.0,16723.0,0.315015]
[1673010162490,0.62413132,16724.0,16723.0,0.315015]
[1673010162737,1.40682791,16724.0,16722.0,0.71248373]
[1673010163036,1.40025397,16724.0,16722.0,0.71248373]
[1673010163297,1.53625397,16724.0,16723.0,0.315015]
[1673010163556,1.40025397,16724.0,16723.0,0.315015]
[1673010163812,1.35807432,16724.0,16722.0,0.71248373]
[1673010164069,0.17817316,16723.0,16722.0,0.71248373]
[1673010164620,0.17817316,16723.0,16722.0,1.02751773]
[1673010165138,0.4455637,16723.0,16722.0,0.315034]
[1673010165637,1.0435417,16723.0,16721.0,1.78778032]
[1673010166152,1.0435417,16723.0,16722.0,0.315038]
[1673010166407,1.1795417,16723.0,16721.0,1.78778032]
[1673010166654,1.64870288,16723.0,16721.0,1.78778032]
[1673010166952,0.34304345,16722.0,16721.0,1.14734625]
[1673010167436,0.61043399,16722.0,16720.0,0.13418791]
[1673010167686,2.41162317,16722.0,16720.0,0.13418791]
[1673010168252,2.24675288,16722.0,16720.0,0.13418791]
[1673010168458,1.6415917,16722.0,16720.0,0.13418791]
[1673010168717,1.51020116,16722.0,16720.0,0.13418791]
[1673010169227,0.5815637,16722.0,16721.0,0.00114542]
[1673010169517,0.31417316,16722.0,16721.0,0.31620242]
[1673010169786,0.31417316,16722.0,16720.0,1.83626059]
[1673010170268,0.31417316,16722.0,16721.0,0.31506]
[1673010170514,0.136,16722.0,16720.0,1.83740608]
[1673010171044,1.05072488,16723.0,16721.0,0.31506]
[1673010171284,0.4455637,16723.0,16721.0,0.59805]
[1673010171536,0.136,16722.0,16721.0,0.59805]
[1673010171796,0.4455637,16723.0,16721.0,0.59805]
[1673010172104,0.5815637,16723.0,16721.0,0.59805]
[1673010172323,0.4455637,16723.0,16721.0,0.59805]
[1673010172566,0.136,16722.0,16720.0,1.83624159]
[1673010172821,0.17817316,16722.0,16721.0,0.71117854]
[1673010173077,0.17817316,16723.0,16721.0,1.30922854]
[1673010173609,0.4455637,16723.0,16721.0,0.59805]
[1673010173847,0.5815637,16723.0,16720.0,1.84964283]
[1673010174102,0.31417316,16723.0,16721.0,0.598047]
[1673010174643,0.5815637,16723.0,16721.0,0.598047]
[1673010174898,0.5815637,16723.0,16720.0,1.75157483]
[1673010175146,0.81924159,16723.0,16721.0,0.598047]
[1673010175397,0.5815637,16723.0,16721.0,0.598047]
[1673010176915,0.93830448,16723.0,16720.0,1.84964083]
[1673010177216,2.37912655,16723.0,16720.0,1.84964083]
[1673010177713,0.3,16721.0,16720.0,1.84964083]
[1673010178223,0.3,16721.0,16720.0,1.25157583]
[1673010178977,0.436,16721.0,16720.0,1.64944276]
[1673010179236,0.436,16721.0,16720.0,3.16069676]
[1673010179485,0.436,16721.0,16720.0,3.66069676]
[1673010179756,0.436,16721.0,16720.0,2.76282983]
[1673010179987,0.436,16721.0,16720.0,2.76397532]
[1673010180245,0.436,16721.0,16720.0,2.76282983]
[1673010182065,0.436,16721.0,16720.0,2.44774783]
[1673010182385,0.436,16721.0,16720.0,2.84446737]
[1673010182577,0.436,16721.0,16720.0,3.15955037]
[1673010183315,0.436,16721.0,16720.0,2.84446737]
[1673010183659,0.436,16721.0,16720.0,0.44927091]
[1673010183660,0.8815637,16721.0,16720.0,0.44927091]
[1673010183870,0.8815637,16721.0,16720.0,0.13418791]
[1673010184633,1.06013132,16721.0,16720.0,0.13418791]
[1673010184898,1.50604898,16721.0,16720.0,0.13418791]
[1673010185416,1.06013132,16721.0,16720.0,0.13418791]
[1673010186477,2.10409898,16721.0,16720.0,0.13418791]
[1673010186728,1.70129121,16721.0,16720.0,0.13418791]
[1673010187247,2.0445307,16721.0,16720.0,0.13418791]
[1673010187543,1.86713055,16721.0,16720.0,0.13418791]
[1673010187800,1.85342355,16721.0,16720.0,0.13418791]
[1673010188048,1.86713055,16721.0,16720.0,0.13418791]
[1673010188868,1.79751445,16721.0,16720.0,0.13418791]
[1673010189133,3.00021027,16721.0,16720.0,0.13418791]
[1673010189416,4.14562577,16721.0,16720.0,0.13418791]
[1673010189670,4.14562577,16721.0,16719.0,0.37210136]
[1673010189671,4.22536418,16721.0,16719.0,0.22177149]
[1673010189924,1.93181392,16720.0,16719.0,0.22177149]
[1673010190189,3.82607771,16720.0,16719.0,0.22177149]
[1673010190462,4.30991822,16720.0,16719.0,0.22177149]
[1673010190718,4.57224033,16720.0,16719.0,0.22177149]
[1673010190971,4.60805686,16720.0,16719.0,0.22177149]
[1673010191221,4.74405686,16720.0,16719.0,0.22177149]
[1673010191785,4.74405686,16720.0,16718.0,0.03095607]
[1673010191786,4.49715568,16720.0,16718.0,0.03095607]
[1673010192046,1.32804584,16719.0,16718.0,0.03095607]
[1673010192293,3.22709365,16719.0,16718.0,0.03095607]
[1673010192557,3.76099365,16719.0,16715.0,0.45002729]
[1673010192827,3.76099365,16719.0,16715.0,0.96211944]
[1673010192828,0.80373823,16716.0,16715.0,0.96211944]
[1673010193090,1.20374402,16716.0,16715.0,0.9632191]
[1673010193352,0.57862791,16716.0,16715.0,1.56038444]
[1673010193617,0.39500579,16716.0,16715.0,2.84136481]
[1673010193868,0.39500579,16716.0,16715.0,3.92127801]
[1673010194142,0.48500579,16716.0,16715.0,3.94455004]
[1673010194648,0.48500579,16716.0,16715.0,3.92127801]
[1673010194908,0.10241158,16716.0,16715.0,4.51593101]
[1673010195166,0.68422049,16719.0,16716.0,0.5]
[1673010195477,0.17862212,16719.0,16718.0,0.5]
[1673010195682,0.54654839,16719.0,16718.0,2.011446]
[1673010196462,0.64654839,16719.0,16718.0,2.011446]
[1673010196715,0.17862212,16719.0,16718.0,2.011446]
[1673010196997,0.5465426,16719.0,16718.0,2.60337169]
[1673010197228,0.5465426,16719.0,16718.0,2.93852816]
[1673010197229,0.27862212,16719.0,16718.0,2.93852816]
[1673010197482,0.5465426,16719.0,16718.0,2.93826194]
[1673010198576,0.72513747,16719.0,16718.0,2.93826194]
[1673010198836,0.54652581,16719.0,16718.0,2.60310547]
[1673010199082,0.72513747,16719.0,16718.0,0.921289]
[1673010199387,1.99251564,16719.0,16718.0,0.008]
[1673010199636,2.08181988,16719.0,16718.0,0.008]
[1673010199896,2.74953869,16719.0,16718.0,0.008]
[1673010200143,3.36129569,16719.0,16718.0,0.008]
[1673010200411,1.48369888,16719.0,16718.0,0.008]
[1673010200660,0.88557788,16719.0,16718.0,0.008]
[1673010201433,0.3497524,16719.0,16718.0,0.008]
[1673010203721,0.9478734,16719.0,16718.0,0.008]
[1673010204492,0.3497524,16719.0,16718.0,0.008]
[1673010204773,0.88557788,16719.0,16718.0,0.008]
[1673010207122,1.48369888,16719.0,16718.0,0.008]
[1673010209124,0.88557788,16719.0,16718.0,0.008]
[1673010209374,0.3497524,16719.0,16718.0,0.008]
[1673010209638,0.88557788,16719.0,16718.0,0.00526137]
[1673010211171,1.48369888,16719.0,16718.0,0.00526137]
[1673010212687,2.51492567,16719.0,16718.0,0.00526137]
[1673010212942,2.31007999,16719.0,16718.0,0.00526137]
[1673010213208,2.38601151,16719.0,16718.0,0.00230949]
[1673010213505,2.98413251,16719.0,16718.0,0.00230949]
[1673010215732,3.15126987,16719.0,16718.0,0.00230949]
[1673010216802,2.1577514,16719.0,16718.0,0.00230949]
[1673010217056,2.69374508,16719.0,16718.0,0.00230949]
[1673010217326,2.08198808,16719.0,16718.0,0.00230949]
[1673010217588,1.48386708,16719.0,16718.0,0.00230949]
[1673010218087,0.88574608,16719.0,16718.0,0.00230949]
[1673010218913,1.48386708,16719.0,16718.0,0.00230949]
[1673010219170,0.88574608,16719.0,16718.0,0.00230949]
[1673010219677,0.3497524,16719.0,16718.0,0.00230949]
[1673010219941,0.3497524,16719.0,16718.0,0.06867239]
[1673010220205,0.3497524,16719.0,16718.0,0.00230949]
[1673010221483,0.88574608,16719.0,16718.0,0.00230949]
[1673010221987,1.48386708,16719.0,16718.0,0.00230949]
[1673010224060,1.5459944,16719.0,16718.0,0.00230949]
[1673010226104,0.9478734,16719.0,16718.0,0.00230949]
[1673010228452,1.5459944,16719.0,16718.0,0.00230949]
[1673010229732,1.5459944,16719.0,16718.0,0.00151067]
[1673010229979,2.92819678,16719.0,16718.0,0.00065897]
[1673010230289,3.86338404,16719.0,16718.0,0.00065897]
[1673010230729,3.26526304,16719.0,16718.0,0.00065897]
[1673010231261,3.86338404,16719.0,16718.0,0.00065897]
[1673010231527,3.35867242,16719.0,16718.0,0.00065897]
[1673010231807,3.86605338,16719.0,16718.0,0.00065897]
[1673010232300,3.26251181,16719.0,16718.0,0.00065897]
[1673010233067,3.8658477,16719.0,16718.0,0.00065897]
[1673010233322,3.69010171,16719.0,16718.0,0.00065897]
[1673010235395,2.1496064,16719.0,16718.0,0.00065897]
[1673010235681,0.9478734,16719.0,16718.0,0.00065897]
[1673010235940,0.3497524,16719.0,16718.0,0.19373897]
[1673010236456,0.34903259,16719.0,16718.0,0.19373897]
[1673010236695,0.88565532,16719.0,16718.0,0.19373897]
[1673010236957,0.88565532,16719.0,16718.0,0.70106735]
[1673010237731,0.88565532,16719.0,16718.0,0.38593835]
[1673010238042,0.88565532,16719.0,16718.0,1.26133638]
[1673010238297,0.88565532,16719.0,16718.0,1.85949338]
[1673010238556,0.88565532,16719.0,16718.0,2.45765038]
[1673010239368,0.34903259,16719.0,16718.0,3.05580738]
[1673010239662,0.54659763,16719.0,16718.0,3.05580738]
[1673010239930,0.2684093,16719.0,16718.0,3.39672113]
[1673010240195,0.00015,16721.0,16719.0,0.62492426]
[1673010240461,0.53662273,16722.0,16720.0,1.25866443]
[1673010240935,0.68246718,16722.0,16721.0,0.315066]
[1673010241203,0.14584445,16722.0,16721.0,2.61288219]
[1673010241463,0.68246718,16723.0,16721.0,2.61288219]
[1673010241717,0.68246718,16723.0,16721.0,2.29781619]
[1673010241974,0.68246718,16723.0,16722.0,0.54482062]
[1673010242761,0.15284445,16723.0,16722.0,0.54482062]
[1673010243027,0.14584445,16723.0,16722.0,0.54482062]
[1673010243299,0.15284445,16723.0,16722.0,0.011]
[1673010243581,0.75645645,16723.0,16722.0,0.011]
[1673010243844,0.15284445,16723.0,16722.0,0.011]
[1673010244102,0.75082245,16723.0,16722.0,0.011]
[1673010244724,0.75082245,16723.0,16722.0,0.01064385]
[1673010245499,1.2870547,16723.0,16722.0,0.01064385]
[1673010245762,0.6890767,16723.0,16722.0,0.01064385]
[1673010246573,0.6890767,16723.0,16722.0,0.13490774]
[1673010247448,0.15284445,16723.0,16721.0,1.56293782]
[1673010247452,0.26751856,16722.0,16721.0,1.56293882]
[1673010247663,0.71418059,16722.0,16721.0,1.56296082]
[1673010247878,0.86002504,16722.0,16721.0,1.83031687]
[1673010248766,0.88802504,16722.0,16721.0,1.86092653]
[1673010248990,0.44136301,16722.0,16721.0,1.86092653]
[1673010249206,0.74207438,16722.0,16721.0,1.86092653]
[1673010249426,0.88791883,16722.0,16721.0,1.86092653]
[1673010252330,1.24504449,16722.0,16721.0,1.86092653]
[1673010252573,0.97752593,16722.0,16721.0,1.86092653]
[1673010252800,0.83168148,16722.0,16721.0,1.86092653]
[1673010253236,0.83168148,16722.0,16721.0,2.45897653]
[1673010253237,0.65298435,16722.0,16721.0,2.45897653]
[1673010253449,0.65298435,16722.0,16721.0,2.77403353]
[1673010253662,0.83151705,16722.0,16721.0,2.77403353]
[1673010253946,0.83151721,16722.0,16721.0,2.77403353]
[1673010255345,0.65298435,16722.0,16721.0,2.77403353]
[1673010255570,0.83149282,16722.0,16721.0,2.77403353]
[1673010255785,0.47436716,16722.0,16721.0,2.77403353]
[1673010256007,0.65298435,16722.0,16721.0,2.77403353]
[1673010256897,0.028,16722.0,16721.0,2.91748891]
[1673010257336,0.028,16722.0,16721.0,2.65013286]
[1673010257558,0.028,16722.0,16721.0,2.13978766]
[1673010257778,0.56363196,16722.0,16721.0,2.13978766]
[1673010258006,0.47419247,16722.0,16721.0,2.13978766]
[1673010258226,0.47419247,16722.0,16721.0,1.54173766]
[1673010258663,0.47419247,16722.0,16721.0,1.87491736]
[1673010259325,0.2065063,16722.0,16721.0,1.87491736]
[1673010259538,0.20578649,16722.0,16721.0,1.87491736]
[1673010259977,0.73938341,16722.0,16721.0,1.55986036]
[1673010260337,0.73938341,16722.0,16721.0,0.96181036]
[1673010260474,1.09687242,16722.0,16721.0,0.03060966]
[1673010260738,1.23647849,16722.0,16721.0,0.03060966]
[1673010260990,1.23648538,16722.0,16721.0,0.03060966]
[1673010261254,1.23648538,16722.0,16721.0,0.2045376]
[1673010262091,1.23647765,16722.0,16721.0,0.03060966]
[1673010262362,1.23647757,16722.0,16721.0,0.03060966]
[1673010262615,0.91796174,16722.0,16721.0,0.62865966]
[1673010263169,0.91796174,16722.0,16721.0,1.22670966]
[1673010263449,1.09639971,16722.0,16721.0,1.22670966]
[1673010263706,0.4733633,16722.0,16721.0,1.51383698]
[1673010263958,0.4733633,16722.0,16721.0,2.4080476]
[1673010264522,0.4733633,16722.0,16721.0,2.0929876]
[1673010264784,0.4733633,16722.0,16721.0,2.09405144]
[1673010264785,0.20571816,16722.0,16721.0,2.09405144]
[1673010265600,0.20571816,16722.0,16721.0,2.0929876]
[1673010265862,0.4733633,16722.0,16721.0,2.0929876]
[1673010266121,0.20571816,16722.0,16721.0,2.0929876]
[1673010266662,0.20571816,16722.0,16721.0,2.6910376]
[1673010269537,0.20571816,16722.0,16721.0,3.0060976]
[1673010270573,0.02728019,16722.0,16721.0,3.0060976]
[1673010271132,0.20571816,16722.0,16721.0,3.0060976]
[1673010273628,0.4733633,16722.0,16721.0,3.0060976]
[1673010275203,0.20571816,16722.0,16721.0,3.0060976]
[1673010275462,0.4733633,16722.0,16721.0,3.0060976]
[1673010276081,0.65205099,16722.0,16721.0,3.0060976]
[1673010276511,0.65205099,16722.0,16721.0,2.4080476]
[1673010277021,1.09860681,16722.0,16721.0,2.0929876]
[1673010277279,0.96991975,16722.0,16721.0,2.0929876]
[1673010277546,0.96991975,16722.0,16721.0,2.4080476]
[1673010277799,0.96991975,16722.0,16721.0,3.0060976]
[1673010279376,0.61279409,16722.0,16721.0,3.0060976]
[1673010279626,0.97067604,16722.0,16721.0,3.0060976]
[1673010281432,0.83171796,16722.0,16721.0,3.0060976]
[1673010282175,0.65359732,16722.0,16721.0,3.0060976]
[1673010283471,0.83253999,16722.0,16721.0,3.5954381]
[1673010283793,0.65359732,16722.0,16721.0,3.59535877]
[1673010283998,0.65359732,16722.0,16721.0,3.00601827]
[1673010288114,1.10015314,16722.0,16721.0,3.00601827]
[1673010288379,0.97038901,16722.0,16721.0,3.00601827]
[1673010288861,0.97038901,16722.0,16721.0,2.69095827]
[1673010291527,0.97038901,16722.0,16721.0,3.00601827]
[1673010291947,0.83171796,16722.0,16721.0,3.00601827]
[1673010292814,0.97017661,16722.0,16721.0,3.00601827]
[1673010293051,1.10021441,16722.0,16721.0,3.00601827]
[1673010293303,0.65365859,16722.0,16721.0,3.00601827]
[1673010294342,0.65365859,16722.0,16721.0,3.89535877]
[1673010294590,0.47478101,16722.0,16721.0,3.89535877]
[1673010294856,0.47478101,16722.0,16721.0,3.59535877]
[1673010295118,0.47478101,16722.0,16721.0,4.89535877]
[1673010295892,0.47478101,16722.0,16721.0,4.90385877]
[1673010296429,0.20628456,16722.0,16721.0,4.90385877]
[1673010298748,0.02728019,16722.0,16721.0,4.90385877]
[1673010299255,0.44750082,16723.0,16721.0,4.89285877]
[1673010299515,0.44750082,16723.0,16722.0,0.47402803]
[1673010299774,0.44750082,16723.0,16722.0,3.17244953]
[1673010300527,0.19500437,16723.0,16722.0,3.17444953]
[1673010301035,0.46350082,16723.0,16722.0,3.67444953]
[1673010301550,0.46350082,16723.0,16722.0,4.22072456]
[1673010301848,0.82138277,16723.0,16722.0,3.33138406]
[1673010302091,0.6423784,16723.0,16722.0,3.33138406]
[1673010302339,0.6423784,16723.0,16722.0,3.92072456]
[1673010302340,0.46348508,16723.0,16722.0,3.92072456]
[1673010303356,0.46348508,16723.0,16722.0,4.22072456]
[1673010304155,0.82136703,16723.0,16722.0,3.13138406]
[1673010304415,0.6423784,16723.0,16722.0,3.42072456]
[1673010304687,0.6423784,16723.0,16722.0,2.83138406]
[1673010304941,0.82135278,16723.0,16722.0,2.83138406]
[1673010305970,0.46347083,16723.0,16722.0,2.83138406]
[1673010306227,0.46347083,16723.0,16722.0,3.72072456]
[1673010306476,0.19497438,16723.0,16722.0,3.72072456]
[1673010306721,0.46347083,16723.0,16722.0,3.72072456]
[1673010307234,0.19497438,16723.0,16722.0,3.72072456]
[1673010307742,0.19497438,16723.0,16722.0,2.83138406]
[1673010308007,0.45847083,16723.0,16722.0,3.13138406]
[1673010308515,0.45847083,16723.0,16722.0,2.83138406]
[1673010308763,0.18997438,16723.0,16722.0,3.13138406]
[1673010309006,0.18997438,16723.0,16722.0,3.72072456]
[1673010310507,0.011,16723.0,16722.0,3.72922456]
[1673010312262,0.011,16723.0,16722.0,4.52317223]
[1673010312517,0.011,16723.0,16722.0,4.51108166]
[1673010313295,0.011,16723.0,16722.0,3.9768972]
[1673010314872,0.011,16723.0,16722.0,4.60753777]